lending/lending_fUSD_20250317
["ID","MTS","AMOUNT","RATE_DAILY","PERIOD"]
[356278870,1742176246254,-448.29,0.00019215,2]
[356278871,1742176246264,-448.29,0.00019266,2]
[356278872,1742176246275,-2495.43,0.00019284,2]
[356278873,1742176246286,-247.10298578,0.000193,2]
[356278874,1742176246297,-23900.0,0.00019304,2]
[356278875,1742176246307,-448.29,0.00019317,2]
[356278876,1742176246316,-448.29,0.00019367,2]
[356278877,1742176246325,-448.29,0.00019418,2]
[356278878,1742176246334,-253.37,0.00019443,2]
[356278879,1742176246344,-2229.54,0.00019467,2]
[356278880,1742176246353,-448.29,0.00019468,2]
[356278881,1742176246363,-448.29,0.00019519,2]
[356278882,1742176246372,-188.23,0.00019551,2]
[356278883,1742176246382,-448.29,0.00019569,2]
[356278884,1742176246391,-448.29,0.0001962,2]
[356278885,1742176246401,-250.0,0.0001965,2]
[356278886,1742176246411,-448.29,0.00019671,2]
[356278887,1742176246420,-448.29,0.00019721,2]
[356278888,1742176246430,-448.29,0.00019772,2]
[356278889,1742176246440,-448.29,0.00019822,2]
[356278890,1742176246449,-448.29,0.00019873,2]
[356278891,1742176246459,-488.05,0.00019882,2]
[356278892,1742176246468,-491.47,0.000199,2]
[356278893,1742176246478,-448.29,0.00019924,2]
[356278894,1742176246487,-448.29,0.00019974,2]
[356278895,1742176246497,-448.29,0.00020025,2]
[356278896,1742176246506,-448.29,0.00020075,2]
[356278897,1742176246515,-3622.23,0.00020099,2]
[356278898,1742176246526,-448.29,0.00020126,2]
[356278899,1742176246536,-448.29,0.00020176,2]
[356278900,1742176246546,-1767.87,0.00020417,2]
[356278901,1742176246555,-178.17,0.00020731,2]
[356278902,1742176246564,-300.0,0.00021,2]
[356278903,1742176246574,-1662.68,0.00022133,2]
[356278904,1742176246584,-491.47,0.00022164,2]
[356278905,1742176246593,-2100.32,0.000222,2]
[356278906,1742176246603,-353.51,0.00023063,2]
[356278907,1742176246613,-491.47,0.00024427,2]
[356278908,1742176246623,-5159.10635016,0.000248,2]
[356278909,1742176246632,-1000.0,0.00025496,2]
[356278910,1742176246641,-2472.82,0.00025875,2]
[356278911,1742176246651,-353.51,0.00025945,120]
[356278912,1742176246660,-491.47,0.00026691,2]
[356278913,1742176246670,-388.39741087,0.00026816,2]
[356278914,1742176246679,-151.3,0.00026849,2]
[356278915,1742176246689,-2034.0,0.00027539,2]
[356278916,1742176246699,-1283.406,0.00027539,2]
[356278917,1742176246708,-572.791,0.00027539,2]
[356278918,1742176246718,-643.074,0.00027539,2]
[356278919,1742176246727,-1419.704,0.00027539,2]
[356278920,1742176246737,-787.0,0.00027539,2]
[356278921,1742176246746,-4092.045,0.00027539,2]
[356278922,1742176246756,-1275.374,0.00027539,2]
[356278923,1742176246765,-542.725,0.00027539,2]
[356278924,1742176246774,-1433.465,0.00027539,2]
[356278925,1742176246784,-910.299,0.00027539,2]
[356278926,1742176246794,-151.987,0.00027539,2]
[356278927,1742176246803,-189.04,0.00027539,2]
[356278928,1742176246812,-1116.517,0.00027539,2]
[356278929,1742176246822,-152.588,0.00027539,2]
[356278930,1742176246832,-214.338,0.00027539,2]
[356278931,1742176246842,-3956.811,0.00027539,2]
[356278932,1742176246851,-153.71,0.00027697,2]
[356278933,1742176246861,-2500.0,0.00028379,5]
[356278934,1742176246870,-2500.0,0.00028379,5]
[356278935,1742176246879,-353.51,0.00028828,120]
[356278936,1742176246889,-491.47,0.00028955,2]
[356278937,1742176246899,-677.43050445,0.0002955,2]
[356278938,1742176246908,-3574.71,0.0002994,2]
[356278939,1742176246919,-385.19924382,0.0003,120]
[356278940,1742176246928,-1323.0,0.0003011,5]
[356278941,1742176246938,-2034.0,0.00030539,2]
[356278942,1742176246947,-1279.0,0.00030539,2]
[356278943,1742176246957,-571.0,0.00030539,2]
[356278944,1742176246966,-641.0,0.00030539,2]
[356278945,1742176246976,-1419.0,0.00030539,2]
[356278946,1742176246985,-786.0,0.00030539,2]
[356278947,1742176246994,-4080.0,0.00030539,2]
[356278948,1742176247004,-1271.0,0.00030539,2]
[356278949,1742176247013,-541.0,0.00030539,2]
[356278950,1742176247022,-1429.0,0.00030539,2]
[356278951,1742176247032,-907.0,0.00030539,2]
[356278952,1742176247041,-151.0,0.00030539,2]
[356278953,1742176247051,-150.0,0.00030539,2]
[356278954,1742176247060,-1013.0,0.00030539,2]
[356278955,1742176247070,-150.0,0.00030539,2]
[356278956,1742176247079,-3935.0,0.00030539,2]
[356278957,1742176247088,-360.0,0.00030576,2]
[356278958,1742176247098,-11445.63845449,0.00030576,2]
[356278959,1742176247107,-12733.86686114,0.00030576,2]
[356278960,1742176247117,-25150.37912837,0.00030576,2]
[356278961,1742176247127,-7632.06596339,0.00030576,2]
[356278962,1742176247136,-227.21092938,0.00030576,2]
[356278963,1742176247145,-172.43450647,0.00030576,2]
[356278964,1742176247155,-6000.0,0.00030576,2]
[356278965,1742176247166,-372.57314315,0.00030576,2]
[356278966,1742176247178,-1459.37397597,0.00030576,2]
[356278967,1742176247187,-1025.60820439,0.00030576,2]
[356278968,1742176247197,-4813.57962794,0.00030576,2]
[356278969,1742176247207,-176.95947903,0.00030576,2]
[356278970,1742176247216,-558.8342323,0.00030576,2]
[356278971,1742176247226,-150.0,0.00030576,2]
[356278972,1742176247236,-7715.17766027,0.00030576,2]
[356278973,1742176247246,-602.44050261,0.00030576,2]
[356278974,1742176247256,-621.49782977,0.00030576,2]
[356278975,1742176247266,-213.05444904,0.00030576,2]
[356278976,1742176247289,-84179.91481087,0.00030576,2]
[356278977,1742176247298,-15092.12043145,0.00030576,120]
[356278978,1742176247309,-5355.1827221,0.00030576,2]
[356278979,1742176247319,-491.47,0.00031219,2]
[356278980,1742176247328,-353.51,0.00031711,120]
[356278981,1742176247337,-2100.32,0.000325,2]
[356278982,1742176247347,-491.47,0.00033483,2]
[356278983,1742176247356,-1615.176,0.00033539,2]
[356278984,1742176247365,-1279.0,0.00033539,2]
[356278985,1742176247374,-151.0,0.00033539,2]
[356278986,1742176247383,-3935.0,0.00033539,2]
[356278987,1742176247393,-353.51,0.00034594,120]
[356278988,1742176247402,-285.70331901,0.00034599,120]
[356278989,1742176247412,-2358.149,0.0003485,40]
[356278990,1742176247421,-491.47,0.00035747,2]
[356278991,1742176247431,-233.0,0.000362,2]
[356278992,1742176247440,-368.0,0.000362,2]
[356278993,1742176247450,-170.43,0.000363,31]
[356278994,1742176247460,-170.43,0.000363,31]
[356278995,1742176247469,-170.43,0.000363,31]
[356278996,1742176247479,-170.43,0.000363,31]
[356278997,1742176247488,-170.43,0.000363,31]
[356278998,1742176247497,-170.43,0.000363,31]
[356278999,1742176247506,-170.43,0.000363,31]
[356279000,1742176247515,-170.43,0.000363,31]
[356279001,1742176247524,-170.43,0.000363,31]
[356279002,1742176247534,-170.43,0.000363,31]
[356279003,1742176247543,-170.43,0.000363,31]
[356279004,1742176247552,-170.43,0.000363,31]
[356279005,1742176247561,-1500.0,0.00037339,2]
[356279006,1742176247570,-1000.0,0.00037449,2]
[356279007,1742176247580,-166.58,0.00037931,2]
[356279008,1742176247589,-491.47,0.00038011,2]
[356279009,1742176247598,-2100.32,0.000393,14]
[356279010,1742176247608,-170.43,0.000394,31]
[356279011,1742176247617,-170.43,0.000394,31]
[356279012,1742176247626,-170.43,0.000394,31]
[356279013,1742176247635,-170.43,0.000394,31]
[356279014,1742176247644,-170.43,0.000394,31]
[356279015,1742176247653,-170.43,0.000394,31]
[356279016,1742176247663,-170.43,0.000394,31]
[356279017,1742176247671,-170.43,0.000394,31]
[356279018,1742176247680,-170.43,0.000394,31]
[356279019,1742176247690,-170.43,0.000394,31]
[356279020,1742176247699,-170.43,0.000394,31]
[356279021,1742176247709,-170.43,0.000394,31]
[356279022,1742176247718,-170.43,0.000394,31]
[356279023,1742176247727,-170.43,0.000394,31]
[356279024,1742176247736,-170.43,0.000394,31]
[356279025,1742176247746,-170.43,0.000394,31]
[356279026,1742176247755,-170.43,0.000394,31]
[356279027,1742176247764,-170.43,0.000394,31]
[356279028,1742176247773,-170.43,0.000394,31]
[356279029,1742176247783,-170.43,0.000394,31]
[356279030,1742176247792,-170.43,0.000394,31]
[356279031,1742176247801,-170.43,0.000394,31]
[356279032,1742176247810,-170.43,0.000394,31]
[356279033,1742176247819,-170.43,0.000394,31]
[356279034,1742176247829,-343.77,0.00039414,2]
[356279035,1742176247838,-5000.0,0.000395,120]
[356279036,1742176247847,-343.77,0.00039518,2]
[356279037,1742176247857,-343.77,0.00039622,2]
[356279038,1742176247866,-343.77,0.00039725,2]
[356279039,1742176247875,-343.77,0.00039829,2]
[356279040,1742176247885,-343.77,0.00039933,2]
[356279041,1742176247895,-954.40098865,0.0004,31]
[356279042,1742176247906,-1000.0,0.0004,120]
[356279043,1742176247916,-362.0,0.0004,120]
[356279044,1742176247927,-957.84553188,0.0004,120]
[356279045,1742176247939,-343.77,0.00040036,2]
[356279046,1742176247949,-388.86,0.00040095,7]
[356279047,1742176247959,-343.77,0.0004014,2]
[356279048,1742176247969,-343.77,0.00040244,2]
[356279049,1742176247978,-491.47,0.00040275,2]
[356279050,1742176247988,-343.77,0.00040348,2]
[356279051,1742176247997,-187.88,0.00040399,120]
[356279052,1742176248007,-343.77,0.00040451,2]
[356279053,1742176248016,-343.77,0.00040555,2]
[356279054,1742176248026,-343.77,0.00040659,2]
[356279055,1742176248036,-1000.0,0.00040683,7]
[356279056,1742176248046,-251.94205435,0.00040707,7]
[356279057,1742176248055,-343.77,0.00040763,2]
[356279058,1742176248064,-150.0,0.00040769,2]
[356279059,1742176248073,-1000.0,0.00040776,7]
[356279060,1742176248082,-167.82530416,0.00040781,7]
[356279061,1742176248091,-150.0,0.00040811,2]
[356279062,1742176248101,-1000.0,0.00040815,7]
[356279063,1742176248111,-180.1857454,0.00040822,2]
[356279064,1742176248121,-1000.0,0.00040822,7]
[356279065,1742176248131,-343.77,0.00040866,2]
[356279066,1742176248140,-150.95245422,0.00040886,2]
[356279067,1742176248150,-343.77,0.0004097,2]
[356279068,1742176248159,-191.34503459,0.00040995,2]
[356279069,1742176248172,-22681.77822553,0.00040995,2]
[356279070,1742176248182,-942.23661252,0.00040997,120]
[356279071,1742176248191,-567.0,0.00041,120]
[356279072,1742176248202,-5000.0,0.00041,120]
[356279073,1742176248212,-194.0,0.00041,31]
[356279074,1742176248222,-178.8,0.00041006,2]
[356279075,1742176248231,-343.77,0.00041074,2]
[356279076,1742176248242,-1041.43679187,0.00041093,31]
[356279077,1742176248251,-1114.08161821,0.00041094,30]
[356279078,1742176248261,-500.0,0.00041095,31]
[356279079,1742176248271,-500.0,0.00041095,31]
[356279080,1742176248280,-500.0,0.00041095,31]
[356279081,1742176248291,-553.96375134,0.00041095,31]
[356279082,1742176248300,-500.0,0.00041095,31]
[356279083,1742176248310,-500.0,0.00041095,31]
[356279084,1742176248320,-500.0,0.00041095,31]
[356279085,1742176248330,-500.0,0.00041095,31]
[356279086,1742176248340,-500.0,0.00041095,31]
[356279087,1742176248351,-502.76349726,0.00041095,31]
[356279088,1742176248361,-500.0,0.00041095,31]
[356279089,1742176248370,-500.0,0.00041095,31]
[356279090,1742176248380,-500.0,0.00041095,31]
[356279091,1742176248389,-500.0,0.00041095,31]
[356279092,1742176248399,-500.0,0.00041095,31]
[356279093,1742176248408,-503.98180571,0.00041095,31]
[356279094,1742176248418,-500.0,0.00041095,31]
[356279095,1742176248428,-500.0,0.00041095,31]
[356279096,1742176248437,-500.0,0.00041095,31]
[356279097,1742176248447,-500.0,0.00041095,31]
[356279098,1742176248456,-500.0,0.00041095,31]
[356279099,1742176248466,-502.73299026,0.00041095,31]
[356279100,1742176248474,-500.0,0.00041095,31]
[356279101,1742176248483,-500.0,0.00041095,31]
[356279102,1742176248492,-500.0,0.00041095,31]
[356279103,1742176248502,-500.0,0.00041095,31]
[356279104,1742176248511,-500.0,0.00041095,31]
[356279105,1742176248521,-455.73161748,0.00041095,31]
[356279106,1742176248531,-404.10770288,0.00041095,31]
[356279107,1742176248541,-524.19968664,0.00041095,31]
[356279108,1742176248550,-507.5309557,0.00041095,31]
[356279109,1742176248560,-386.85537033,0.00041095,31]
[356279110,1742176248570,-371.85910535,0.00041095,31]
[356279111,1742176248579,-500.0,0.00041095,31]
[356279112,1742176248589,-500.0,0.00041095,31]
[356279113,1742176248598,-503.17072912,0.00041095,31]
[356279114,1742176248608,-500.0,0.00041095,31]
[356279115,1742176248619,-500.0,0.00041095,31]
[356279116,1742176248628,-277.34749556,0.00041095,31]
[356279117,1742176248637,-500.0,0.00041095,31]
[356279118,1742176248646,-446.56683162,0.00041095,31]
[356279119,1742176248655,-500.0,0.00041095,31]
[356279120,1742176248665,-500.0,0.00041095,31]
[356279121,1742176248674,-562.76754988,0.00041095,31]
[356279122,1742176248684,-500.0,0.00041095,31]
[356279123,1742176248694,-500.0,0.00041095,31]
[356279124,1742176248703,-541.54960552,0.00041095,31]
[356279125,1742176248713,-500.0,0.00041095,31]
[356279126,1742176248722,-609.85502155,0.00041095,31]
[356279127,1742176248732,-507.71949871,0.00041095,31]
[356279128,1742176248741,-221.36621661,0.00041095,31]
[356279129,1742176248751,-500.0,0.00041095,31]
[356279130,1742176248760,-500.0,0.00041095,31]
[356279131,1742176248769,-500.0,0.00041095,31]
[356279132,1742176248779,-542.26698769,0.00041095,31]
[356279133,1742176248788,-500.0,0.00041095,31]
[356279134,1742176248798,-500.0,0.00041095,31]
[356279135,1742176248808,-500.0,0.00041095,31]
[356279136,1742176248817,-500.0,0.00041095,31]
[356279137,1742176248827,-500.0,0.00041095,31]
[356279138,1742176248836,-503.61229779,0.00041095,31]
[356279139,1742176248846,-500.0,0.00041095,31]
[356279140,1742176248855,-500.0,0.00041095,31]
[356279141,1742176248864,-500.0,0.00041095,31]
[356279142,1742176248874,-566.39091096,0.00041095,31]
[356279143,1742176248883,-300.0,0.00041095,31]
[356279144,1742176248892,-324.06783139,0.00041095,31]
[356279145,1742176248902,-500.0,0.00041095,31]
[356279146,1742176248912,-500.0,0.00041095,31]
[356279147,1742176248922,-291.68913351,0.00041095,31]
[356279148,1742176248932,-500.0,0.00041095,31]
[356279149,1742176248942,-500.0,0.00041095,31]
[356279150,1742176248951,-500.0,0.00041095,31]
[356279151,1742176248961,-500.0,0.00041095,31]
[356279152,1742176248970,-271.52217072,0.00041095,31]
[356279153,1742176248980,-500.0,0.00041095,31]
[356279154,1742176248990,-500.0,0.00041095,31]
[356279155,1742176248999,-530.73337645,0.00041095,31]
[356279156,1742176249009,-500.0,0.00041095,31]
[356279157,1742176249018,-500.0,0.00041095,31]
[356279158,1742176249027,-503.15349097,0.00041095,31]
[356279159,1742176249037,-500.0,0.00041095,16]
[356279160,1742176249047,-500.0,0.00041095,16]
[356279161,1742176249056,-500.0,0.00041095,16]
[356279162,1742176249065,-500.0,0.00041095,16]
[356279163,1742176249074,-500.0,0.00041095,16]
[356279164,1742176249085,-502.44316593,0.00041095,16]
[356279165,1742176249094,-500.0,0.00041095,31]
[356279166,1742176249104,-398.11345913,0.00041095,31]
[356279167,1742176249113,-504.7480516,0.00041095,31]
[356279168,1742176249123,-227.40726186,0.00041095,31]
[356279169,1742176249133,-503.35370027,0.00041095,31]
[356279170,1742176249142,-500.0,0.00041095,31]
[356279171,1742176249151,-500.0,0.00041095,31]
[356279172,1742176249161,-500.0,0.00041095,31]
[356279173,1742176249174,-541.34719823,0.00041095,31]
[356279174,1742176249183,-500.0,0.00041095,5]
[356279175,1742176249193,-500.0,0.00041095,5]
[356279176,1742176249202,-500.0,0.00041095,5]
[356279177,1742176249215,-500.0,0.00041095,5]
[356279178,1742176249224,-500.0,0.00041095,5]
[356279179,1742176249234,-640.84928176,0.00041095,5]
[356279180,1742176249245,-500.0,0.00041095,31]
[356279181,1742176249255,-500.0,0.00041095,31]
[356279182,1742176249265,-600.25982203,0.00041095,31]
[356279183,1742176249275,-500.0,0.00041095,31]
[356279184,1742176249285,-500.0,0.00041095,31]
[356279185,1742176249294,-550.98475811,0.00041095,31]
[356279186,1742176249304,-523.69079434,0.00041095,31]
[356279187,1742176249314,-514.76137999,0.00041095,31]
[356279188,1742176249323,-370.24794262,0.00041095,31]
[356279189,1742176249333,-500.0,0.00041095,31]
[356279190,1742176249342,-538.62153015,0.00041095,31]
[356279191,1742176249352,-518.98560045,0.00041095,31]
[356279192,1742176249362,-520.8400255,0.00041095,31]
[356279193,1742176249372,-502.5103671,0.00041095,31]
[356279194,1742176249381,-509.04880545,0.00041095,31]
[356279195,1742176249391,-541.86560279,0.00041095,31]
[356279196,1742176249400,-500.0,0.00041095,31]
[356279197,1742176249409,-500.0,0.00041095,31]
[356279198,1742176249418,-501.33862038,0.00041095,31]
[356279199,1742176249427,-500.0,0.00041095,31]
[356279200,1742176249437,-520.88335033,0.00041095,31]
[356279201,1742176249447,-500.0,0.00041095,31]
[356279202,1742176249456,-511.58611229,0.00041095,31]
[356279203,1742176249466,-500.0,0.00041095,31]
[356279204,1742176249475,-500.0,0.00041095,31]
[356279205,1742176249484,-169.21663315,0.00041095,31]
[356279206,1742176249494,-500.0,0.00041095,31]
[356279207,1742176249503,-515.52130918,0.00041095,31]
[356279208,1742176249513,-500.0,0.00041095,31]
[356279209,1742176249522,-500.0,0.00041095,31]
[356279210,1742176249531,-500.0,0.00041095,31]
[356279211,1742176249541,-500.0,0.00041095,31]
[356279212,1742176249550,-500.0,0.00041095,31]
[356279213,1742176249559,-500.0,0.00041095,31]
[356279214,1742176249732,-500.0,0.00041095,31]
[356279215,1742176249743,-500.0,0.00041095,31]
[356279216,1742176249752,-500.0,0.00041095,31]
[356279217,1742176249761,-500.0,0.00041095,31]
[356279218,1742176249771,-500.0,0.00041095,31]
[356279219,1742176249780,-504.24177418,0.00041095,31]
[356279220,1742176249790,-500.0,0.00041095,31]
[356279221,1742176249800,-506.2121612,0.00041095,31]
[356279222,1742176249809,-500.0,0.00041095,31]
[356279223,1742176249819,-514.70952157,0.00041095,31]
[356279224,1742176249829,-500.0,0.00041095,31]
[356279225,1742176249838,-504.61604511,0.00041095,31]
[356279226,1742176249847,-500.0,0.00041095,31]
[356279227,1742176249857,-509.62799494,0.00041095,31]
[356279228,1742176249867,-500.0,0.00041095,31]
[356279229,1742176249875,-512.35982312,0.00041095,31]
[356279230,1742176249885,-513.26400159,0.00041095,31]
[356279231,1742176249894,-500.0,0.00041095,31]
[356279232,1742176249903,-511.78135863,0.00041095,31]
[356279233,1742176249912,-500.0,0.00041095,31]
[356279234,1742176249922,-500.0,0.00041095,31]
[356279235,1742176249931,-500.0,0.00041095,31]
[356279236,1742176249941,-185.29781232,0.00041095,31]
[356279237,1742176249950,-1000.0,0.00041095,2]
[356279238,1742176249959,-1000.0,0.00041095,2]
[356279239,1742176249968,-1000.0,0.00041095,2]
[356279240,1742176249977,-1000.0,0.00041095,2]
[356279241,1742176249987,-1000.0,0.00041095,2]
[356279242,1742176249996,-859.86556323,0.00041095,2]
[356279243,1742176250005,-500.0,0.00041095,31]
[356279244,1742176250014,-500.0,0.00041095,31]
[356279245,1742176250024,-500.0,0.00041095,31]
[356279246,1742176250033,-500.0,0.00041095,31]
[356279247,1742176250043,-500.0,0.00041095,31]
[356279248,1742176250052,-500.0,0.00041095,31]
[356279249,1742176250061,-500.0,0.00041095,31]
[356279250,1742176250070,-500.0,0.00041095,31]
[356279251,1742176250079,-500.0,0.00041095,31]
[356279252,1742176250089,-500.0,0.00041095,31]
[356279253,1742176250099,-500.0,0.00041095,31]
[356279254,1742176250108,-500.0,0.00041095,31]
[356279255,1742176250117,-500.0,0.00041095,31]
[356279256,1742176250127,-356.89515575,0.00041095,31]
[356279257,1742176250136,-517.68747713,0.00041095,31]
[356279258,1742176250145,-500.0,0.00041095,31]
[356279259,1742176250155,-500.0,0.00041095,31]
[356279260,1742176250167,-601.96625627,0.00041095,31]
[356279261,1742176250180,-520.81261994,0.00041095,31]
[356279262,1742176250190,-500.0,0.00041095,31]
[356279263,1742176250199,-500.0,0.00041095,31]
[356279264,1742176250208,-500.0,0.00041095,31]
[356279265,1742176250218,-344.1989548,0.00041095,31]
[356279266,1742176250228,-531.11865327,0.00041095,31]
[356279267,1742176250237,-500.0,0.00041095,31]
[356279268,1742176250248,-500.0,0.00041095,31]
[356279269,1742176250258,-500.0,0.00041095,31]
[356279270,1742176250267,-500.0,0.00041095,31]
[356279271,1742176250276,-553.88879893,0.00041095,31]
[356279272,1742176250285,-500.0,0.00041095,31]
[356279273,1742176250295,-557.51690141,0.00041095,31]
[356279274,1742176250304,-1125.33,0.00041095,31]
[356279275,1742176250313,-500.0,0.00041095,31]
[356279276,1742176250322,-1125.33,0.00041095,31]
[356279277,1742176250332,-500.0,0.00041095,31]
[356279278,1742176250341,-1125.33,0.00041095,31]
[356279279,1742176250350,-500.0,0.00041095,31]
[356279280,1742176250359,-1125.33,0.00041095,31]
[356279281,1742176250368,-500.0,0.00041095,31]
[356279282,1742176250377,-1125.33,0.00041095,31]
[356279283,1742176250386,-500.0,0.00041095,31]
[356279284,1742176250396,-1125.33,0.00041095,31]
[356279285,1742176250405,-605.55896101,0.00041095,31]
[356279286,1742176250414,-1125.33,0.00041095,31]
[356279287,1742176250423,-1125.33,0.00041095,31]
[356279288,1742176250433,-1125.33,0.00041095,31]
[356279289,1742176250442,-1125.33,0.00041095,31]
[356279290,1742176250451,-1125.33,0.00041095,31]
[356279291,1742176250461,-1125.33,0.00041095,31]
[356279292,1742176250470,-1125.33,0.00041095,31]
[356279293,1742176250479,-1125.33,0.00041095,31]
[356279294,1742176250489,-500.0,0.00041095,31]
[356279295,1742176250499,-500.0,0.00041095,31]
[356279296,1742176250508,-500.0,0.00041095,31]
[356279297,1742176250518,-1125.33,0.00041095,31]
[356279298,1742176250528,-500.0,0.00041095,31]
[356279299,1742176250539,-500.0,0.00041095,31]
[356279300,1742176250549,-1125.33,0.00041095,31]
[356279301,1742176250558,-500.0,0.00041095,31]
[356279302,1742176250567,-500.0,0.00041095,31]
[356279303,1742176250577,-1125.33,0.00041095,31]
[356279304,1742176250586,-500.0,0.00041095,31]
[356279305,1742176250596,-511.76435256,0.00041095,31]
[356279306,1742176250605,-1125.33,0.00041095,31]
[356279307,1742176250615,-500.0,0.00041095,31]
[356279308,1742176250624,-1125.33,0.00041095,31]
[356279309,1742176250634,-304.52691829,0.00041095,31]
[356279310,1742176250644,-1125.33,0.00041095,31]
[356279311,1742176250653,-1125.33,0.00041095,31]
[356279312,1742176250662,-1125.33,0.00041095,31]
[356279313,1742176250672,-1125.33,0.00041095,31]
[356279314,1742176250681,-1125.55704805,0.00041095,31]
[356279315,1742176250691,-500.0,0.00041095,31]
[356279316,1742176250700,-500.0,0.00041095,31]
[356279317,1742176250709,-500.0,0.00041095,31]
[356279318,1742176250718,-500.0,0.00041095,31]
[356279319,1742176250727,-500.0,0.00041095,31]
[356279320,1742176250737,-500.0,0.00041095,31]
[356279321,1742176250746,-500.0,0.00041095,31]
[356279322,1742176250755,-500.0,0.00041095,31]
[356279323,1742176250764,-500.0,0.00041095,31]
[356279324,1742176250774,-500.0,0.00041095,31]
[356279325,1742176250784,-500.0,0.00041095,31]
[356279326,1742176250793,-500.0,0.00041095,31]
[356279327,1742176250803,-197.67196814,0.00041095,31]
[356279328,1742176250812,-500.0,0.00041095,31]
[356279329,1742176250822,-500.0,0.00041095,31]
[356279330,1742176250831,-500.0,0.00041095,31]
[356279331,1742176250841,-500.0,0.00041095,31]
[356279332,1742176250850,-480.14190817,0.00041095,31]
[356279333,1742176250861,-500.0,0.00041095,31]
[356279334,1742176250871,-500.0,0.00041095,31]
[356279335,1742176250881,-500.0,0.00041095,31]
[356279336,1742176250891,-500.0,0.00041095,31]
[356279337,1742176250900,-500.0,0.00041095,31]
[356279338,1742176250910,-500.0,0.00041095,31]
[356279339,1742176250919,-500.0,0.00041095,31]
[356279340,1742176250928,-500.0,0.00041095,31]
[356279341,1742176250938,-500.0,0.00041095,31]
[356279342,1742176250947,-500.0,0.00041095,31]
[356279343,1742176250956,-500.0,0.00041095,31]
[356279344,1742176250966,-500.0,0.00041095,31]
[356279345,1742176250975,-516.80596814,0.00041095,31]
[356279346,1742176250985,-500.0,0.00041095,31]
[356279347,1742176250994,-314.66880188,0.00041095,31]
[356279348,1742176251004,-2859.8797316,0.00041095,2]
[356279349,1742176251013,-500.0,0.00041095,31]
[356279350,1742176251023,-500.0,0.00041095,31]
[356279351,1742176251033,-370.18310209,0.00041095,31]
[356279352,1742176251042,-500.0,0.00041095,31]
[356279353,1742176251051,-500.0,0.00041095,31]
[356279354,1742176251061,-500.0,0.00041095,31]
[356279355,1742176251070,-500.0,0.00041095,31]
[356279356,1742176251079,-500.0,0.00041095,31]
[356279357,1742176251088,-516.28913478,0.00041095,31]
[356279358,1742176251098,-500.0,0.00041095,31]
[356279359,1742176251107,-595.49617088,0.00041095,31]
[356279360,1742176251117,-500.0,0.00041095,31]
[356279361,1742176251126,-500.0,0.00041095,31]
[356279362,1742176251136,-500.0,0.00041095,31]
[356279363,1742176251147,-500.0,0.00041095,31]
[356279364,1742176251156,-500.0,0.00041095,31]
[356279365,1742176251168,-500.0,0.00041095,31]
[356279366,1742176251179,-500.0,0.00041095,31]
[356279367,1742176251188,-500.0,0.00041095,31]
[356279368,1742176251198,-232.11897963,0.00041095,31]
[356279369,1742176251208,-500.0,0.00041095,31]